[Event "Titled Tuesday Blitz July 4 Late 2023"]
[White "Ozen, Bahadir"]
[Black "Shubenkova, Veronika"]
[WhiteFideId "6337058"]
[BlackFideId "44124040"]
[WhiteElo "2828"]
[BlackElo "2553"]
[Result "1-0"]
[Round "3"]
[TimeControl "180+2"]
[Date "2023.07.04"]
[WhiteClock "0:02:01"]
[BlackClock "0:01:42"]
[Board "33"]

1. g3 {[%clk 0:03:00]}  d5 {[%clk 0:02:59]} 2. Nf3 {[%clk 0:03:00]}  c6 {[%clk 0:03:00]} 3. Bg2 {[%clk 0:03:01]}  Nf6 {[%clk 0:03:00]} 4. O-O {[%clk 0:03:01]}  g6 {[%clk 0:03:01]} 5. d3 {[%clk 0:03:01]}  Bg7 {[%clk 0:03:02]} 6. Nbd2 {[%clk 0:03:02]}  O-O {[%clk 0:03:03]} 7. e4 {[%clk 0:03:03]}  d4 {[%clk 0:03:00]} 8. Nb3 {[%clk 0:02:59]}  Ne8 {[%clk 0:02:55]} 9. e5 {[%clk 0:02:49]}  Bg4 {[%clk 0:02:53]} 10. Re1 {[%clk 0:02:49]}  Bxf3 {[%clk 0:02:52]} 11. Qxf3 {[%clk 0:02:47]}  Nc7 {[%clk 0:02:52]} 12. Qe4 {[%clk 0:02:42]}  Ne6 {[%clk 0:02:39]} 13. f4 {[%clk 0:02:42]}  a5 {[%clk 0:02:37]} 14. a4 {[%clk 0:02:41]}  Na6 {[%clk 0:02:36]} 15. Bd2 {[%clk 0:02:40]}  Nac5 {[%clk 0:02:35]} 16. Nxc5 {[%clk 0:02:39]}  Nxc5 {[%clk 0:02:36]} 17. Qf3 {[%clk 0:02:36]}  e6 {[%clk 0:02:35]} 18. Re2 {[%clk 0:02:27]}  Qd7 {[%clk 0:02:31]} 19. h4 {[%clk 0:02:22]}  Ra6 {[%clk 0:02:28]} 20. h5 {[%clk 0:02:19]}  Rb8 {[%clk 0:02:28]} 21. Kf2 {[%clk 0:02:10]}  b5 {[%clk 0:02:28]} 22. hxg6 {[%clk 0:02:10]}  fxg6 {[%clk 0:02:24]} 23. axb5 {[%clk 0:02:11]}  Rxb5 {[%clk 0:02:23]} 24. b3 {[%clk 0:02:02]}  a4 {[%clk 0:02:23]} 25. bxa4 {[%clk 0:01:59]}  Rxa4 {[%clk 0:02:23]} 26. Rxa4 {[%clk 0:01:59]}  Nxa4 {[%clk 0:02:23]} 27. Qxc6 {[%clk 0:02:00]}  Qxc6 {[%clk 0:01:42]} 28. Bxc6 {[%clk 0:02:01]} 1-0


[Site "https://www.chess.com"]

[Event "Titled Tuesday Blitz July 4 Late 2023"]
[White "Principe, Gerson"]
[Black "Stribuk, Artiom"]
[WhiteFideId "3804550"]
[BlackFideId "13515659"]
[WhiteElo "2533"]
[BlackElo "2813"]
[Result "0-1"]
[Round "3"]
[TimeControl "180+2"]
[Date "2023.07.04"]
[WhiteClock "0:00:00"]
[BlackClock "0:00:07"]
[Board "35"]

1. d4 {[%clk 0:03:00]}  Nf6 {[%clk 0:02:59]} 2. e3 {[%clk 0:03:00]}  g6 {[%clk 0:03:00]} 3. Nf3 {[%clk 0:03:01]}  Bg7 {[%clk 0:02:59]} 4. Be2 {[%clk 0:03:02]}  O-O {[%clk 0:02:59]} 5. O-O {[%clk 0:03:03]}  d5 {[%clk 0:02:59]} 6. c3 {[%clk 0:03:01]}  Nbd7 {[%clk 0:02:49]} 7. b4 {[%clk 0:02:57]}  Re8 {[%clk 0:02:47]} 8. Bb2 {[%clk 0:02:55]}  e5 {[%clk 0:02:47]} 9. c4 {[%clk 0:02:40]}  exd4 {[%clk 0:02:25]} 10. Bxd4 {[%clk 0:02:25]}  dxc4 {[%clk 0:02:04]} 11. Bxc4 {[%clk 0:02:23]}  Nb6 {[%clk 0:02:04]} 12. Bb3 {[%clk 0:02:18]}  Be6 {[%clk 0:02:04]} 13. Nbd2 {[%clk 0:02:17]}  Nbd5 {[%clk 0:01:55]} 14. a3 {[%clk 0:02:13]}  a5 {[%clk 0:01:52]} 15. b5 {[%clk 0:02:05]}  Qe7 {[%clk 0:01:29]} 16. Qc2 {[%clk 0:01:56]}  Rec8 {[%clk 0:01:10]} 17. Rfc1 {[%clk 0:01:51]}  c6 {[%clk 0:01:05]} 18. bxc6 {[%clk 0:01:42]}  Rxc6 {[%clk 0:01:05]} 19. Qb2 {[%clk 0:01:43]}  Rac8 {[%clk 0:01:01]} 20. Ba4 {[%clk 0:01:37]}  Rxc1+ {[%clk 0:00:28]} 21. Rxc1 {[%clk 0:01:37]}  Rxc1+ {[%clk 0:00:29]} 22. Qxc1 {[%clk 0:01:37]}  Bf8 {[%clk 0:00:29]} 23. Bb2 {[%clk 0:01:33]}  Nd7 {[%clk 0:00:25]} 24. Bb5 {[%clk 0:01:27]}  Qc5 {[%clk 0:00:17]} 25. Qxc5 {[%clk 0:00:57]}  Nxc5 {[%clk 0:00:18]} 26. Bc4 {[%clk 0:00:40]}  Nc7 {[%clk 0:00:13]} 27. Bxe6 {[%clk 0:00:38]}  N7xe6 {[%clk 0:00:14]} 28. Nc4 {[%clk 0:00:37]}  a4 {[%clk 0:00:14]} 29. Kf1 {[%clk 0:00:19]}  b5 {[%clk 0:00:13]} 30. Ncd2 {[%clk 0:00:17]}  Nd3 {[%clk 0:00:12]} 31. Ba1 {[%clk 0:00:09]}  Bxa3 {[%clk 0:00:11]} 32. Ke2 {[%clk 0:00:09]}  Bb2 {[%clk 0:00:11]} 33. Kxd3 {[%clk 0:00:07]}  Bxa1 {[%clk 0:00:10]} 34. Kc2 {[%clk 0:00:08]}  b4 {[%clk 0:00:09]} 35. Kc1 {[%clk 0:00:07]}  Nc5 {[%clk 0:00:07]} 36. Nd4 {[%clk 0:00:03]}  Bc3 {[%clk 0:00:04]} 37. N2f3 {[%clk 0:00:02]}  b3 {[%clk 0:00:03]} 38. Nb5 {[%clk 0:00:03]}  Bf6 {[%clk 0:00:03]} 39. Nd2 {[%clk 0:00:03]}  Kf8 {[%clk 0:00:03]} 40. Nc4 {[%clk 0:00:03]}  Ke7 {[%clk 0:00:03]} 41. Nb6 {[%clk 0:00:03]}  Nd3+ {[%clk 0:00:03]} 42. Kb1 {[%clk 0:00:03]}  Nxf2 {[%clk 0:00:02]} 43. Nxa4 {[%clk 0:00:03]}  Ng4 {[%clk 0:00:03]} 44. h3 {[%clk 0:00:03]}  Nxe3 {[%clk 0:00:03]} 45. g4 {[%clk 0:00:04]}  h5 {[%clk 0:00:03]} 46. gxh5 {[%clk 0:00:03]}  gxh5 {[%clk 0:00:04]} 47. Nc5 {[%clk 0:00:04]}  b2 {[%clk 0:00:04]} 48. Nd3 {[%clk 0:00:02]}  Nd5 {[%clk 0:00:05]} 49. Nxb2 {[%clk 0:00:02]}  Bxb2 {[%clk 0:00:04]} 50. Kxb2 {[%clk 0:00:02]}  Nf4 {[%clk 0:00:05]} 51. h4 {[%clk 0:00:02]}  Ng6 {[%clk 0:00:06]} 52. Kc2 {[%clk 0:00:02]}  Kf6 {[%clk 0:00:05]} 53. Kd2 {[%clk 0:00:03]}  Nxh4 {[%clk 0:00:06]} 54. Ke2 {[%clk 0:00:03]}  Ng6 {[%clk 0:00:07]} 55. Nd6 {[%clk 0:00:03]}  Ke6 {[%clk 0:00:07]} 56. Ne4 {[%clk 0:00:03]}  f5 {[%clk 0:00:07]} 57. Ng3 {[%clk 0:00:00]}  h4 {[%clk 0:00:07]} 0-1


[Site "https://www.chess.com"]

[Event "Titled Tuesday Blitz July 4 Late 2023"]
[White "Talibov, Shiroghlan"]
[Black "Kirillov, Dmitry"]
[WhiteFideId "13429078"]
[BlackFideId "34180572"]
[WhiteElo "2803"]
[BlackElo "2533"]
[Result "1-0"]
[Round "3"]
[TimeControl "180+2"]
[Date "2023.07.04"]
[WhiteClock "0:00:49"]
[BlackClock "0:00:00"]
[Board "36"]

1. c4 {[%clk 0:03:00]}  e5 {[%clk 0:02:53]} 2. Nc3 {[%clk 0:02:59]}  Nf6 {[%clk 0:02:53]} 3. Nf3 {[%clk 0:02:59]}  Nc6 {[%clk 0:02:28]} 4. e4 {[%clk 0:02:57]}  d6 {[%clk 0:02:28]} 5. d4 {[%clk 0:02:56]}  Bg4 {[%clk 0:02:27]} 6. d5 {[%clk 0:02:56]}  Nd4 {[%clk 0:02:27]} 7. Be2 {[%clk 0:02:57]}  Bxf3 {[%clk 0:02:27]} 8. Bxf3 {[%clk 0:02:57]}  g6 {[%clk 0:02:27]} 9. g4 {[%clk 0:02:53]}  h6 {[%clk 0:02:25]} 10. h4 {[%clk 0:02:52]}  Bg7 {[%clk 0:02:25]} 11. g5 {[%clk 0:02:46]}  hxg5 {[%clk 0:02:24]} 12. hxg5 {[%clk 0:02:46]}  Rxh1+ {[%clk 0:02:20]} 13. Bxh1 {[%clk 0:02:47]}  Nh5 {[%clk 0:02:20]} 14. Ne2 {[%clk 0:02:42]}  Qd7 {[%clk 0:02:17]} 15. Nxd4 {[%clk 0:02:40]}  exd4 {[%clk 0:02:10]} 16. Bf3 {[%clk 0:02:40]}  Qh3 {[%clk 0:02:08]} 17. Bd2 {[%clk 0:02:38]}  Be5 {[%clk 0:02:06]} 18. Ke2 {[%clk 0:02:10]}  Qh2 {[%clk 0:01:18]} 19. Qg1 {[%clk 0:01:58]}  Nf4+ {[%clk 0:00:43]} 20. Bxf4 {[%clk 0:01:51]}  Qxf4 {[%clk 0:00:44]} 21. Rd1 {[%clk 0:01:25]}  Ke7 {[%clk 0:00:39]} 22. Qg4 {[%clk 0:01:17]}  Qxg4 {[%clk 0:00:34]} 23. Bxg4 {[%clk 0:01:18]}  Rh8 {[%clk 0:00:34]} 24. Kf3 {[%clk 0:01:16]}  Rh2 {[%clk 0:00:29]} 25. b4 {[%clk 0:01:16]}  b6 {[%clk 0:00:29]} 26. Rc1 {[%clk 0:01:16]}  d3 {[%clk 0:00:19]} 27. Rd1 {[%clk 0:01:15]}  Bc3 {[%clk 0:00:08]} 28. a3 {[%clk 0:01:14]}  d2 {[%clk 0:00:03]} 29. Ke3 {[%clk 0:01:05]}  a5 {[%clk 0:00:03]} 30. bxa5 {[%clk 0:00:58]}  Bxa5 {[%clk 0:00:03]} 31. f4 {[%clk 0:00:57]}  Rg2 {[%clk 0:00:03]} 32. Bf3 {[%clk 0:00:57]}  Rh2 {[%clk 0:00:00]} 33. f5 {[%clk 0:00:49]} 1-0


[Site "https://www.chess.com"]

[Event "Titled Tuesday Blitz July 4 Late 2023"]
[White "Rustemov, Alexander"]
[Black "Arencibia Monduy, Antonio"]
[WhiteFideId "4119002"]
[BlackFideId "3507939"]
[WhiteElo "2802"]
[BlackElo "2533"]
[Result "1-0"]
[Round "3"]
[TimeControl "180+2"]
[Date "2023.07.04"]
[WhiteClock "0:00:14"]
[BlackClock "0:00:00"]
[Board "37"]

1. d4 {[%clk 0:03:00]}  e6 {[%clk 0:03:00]} 2. c4 {[%clk 0:02:59]}  Nf6 {[%clk 0:02:59]} 3. Nf3 {[%clk 0:02:58]}  d5 {[%clk 0:03:00]} 4. Nc3 {[%clk 0:02:57]}  Be7 {[%clk 0:03:00]} 5. Bg5 {[%clk 0:02:56]}  Ne4 {[%clk 0:03:00]} 6. Bxe7 {[%clk 0:02:53]}  Qxe7 {[%clk 0:03:01]} 7. e3 {[%clk 0:02:53]}  Nxc3 {[%clk 0:03:01]} 8. bxc3 {[%clk 0:02:52]}  O-O {[%clk 0:03:00]} 9. cxd5 {[%clk 0:02:39]}  exd5 {[%clk 0:03:00]} 10. c4 {[%clk 0:02:32]}  dxc4 {[%clk 0:02:56]} 11. Bxc4 {[%clk 0:02:31]}  Bg4 {[%clk 0:02:15]} 12. O-O {[%clk 0:02:29]}  Nd7 {[%clk 0:02:14]} 13. h3 {[%clk 0:02:26]}  Bh5 {[%clk 0:02:13]} 14. Be2 {[%clk 0:02:24]}  c5 {[%clk 0:02:06]} 15. a4 {[%clk 0:02:20]}  cxd4 {[%clk 0:02:05]} 16. Nxd4 {[%clk 0:02:18]}  Bxe2 {[%clk 0:02:05]} 17. Qxe2 {[%clk 0:02:18]}  Rac8 {[%clk 0:02:00]} 18. a5 {[%clk 0:02:17]}  b6 {[%clk 0:01:49]} 19. Rfb1 {[%clk 0:02:06]}  Qf6 {[%clk 0:01:24]} 20. Qa6 {[%clk 0:01:58]}  bxa5 {[%clk 0:01:08]} 21. Qxa7 {[%clk 0:01:54]}  Ne5 {[%clk 0:00:55]} 22. Qxa5 {[%clk 0:01:51]}  Rfe8 {[%clk 0:00:48]} 23. Qd2 {[%clk 0:01:39]}  Nc4 {[%clk 0:00:42]} 24. Qd3 {[%clk 0:01:36]}  g6 {[%clk 0:00:33]} 25. Rb7 {[%clk 0:01:33]}  Ne5 {[%clk 0:00:28]} 26. Qe2 {[%clk 0:01:22]}  Rb8 {[%clk 0:00:20]} 27. Rba7 {[%clk 0:01:12]}  Red8 {[%clk 0:00:20]} 28. Rc1 {[%clk 0:01:08]}  Rbc8 {[%clk 0:00:19]} 29. Rca1 {[%clk 0:00:53]}  Nc6 {[%clk 0:00:18]} 30. Nxc6 {[%clk 0:00:46]}  Rxc6 {[%clk 0:00:18]} 31. Ra8 {[%clk 0:00:40]}  Rd6 {[%clk 0:00:18]} 32. g3 {[%clk 0:00:33]}  Kg7 {[%clk 0:00:17]} 33. Kg2 {[%clk 0:00:32]}  Rd2 {[%clk 0:00:17]} 34. Qf3 {[%clk 0:00:31]}  Qxf3+ {[%clk 0:00:16]} 35. Kxf3 {[%clk 0:00:31]}  Rxa8 {[%clk 0:00:17]} 36. Rxa8 {[%clk 0:00:31]}  Rd7 {[%clk 0:00:18]} 37. g4 {[%clk 0:00:30]}  h6 {[%clk 0:00:18]} 38. h4 {[%clk 0:00:29]}  Rd5 {[%clk 0:00:16]} 39. Ra4 {[%clk 0:00:29]}  Rc5 {[%clk 0:00:16]} 40. Kf4 {[%clk 0:00:28]}  g5+ {[%clk 0:00:14]} 41. Kg3 {[%clk 0:00:27]}  Rd5 {[%clk 0:00:13]} 42. h5 {[%clk 0:00:27]}  Rc5 {[%clk 0:00:12]} 43. Kf3 {[%clk 0:00:27]}  Rd5 {[%clk 0:00:12]} 44. Ke4 {[%clk 0:00:28]}  Rd6 {[%clk 0:00:12]} 45. Ra5 {[%clk 0:00:26]}  Re6+ {[%clk 0:00:12]} 46. Re5 {[%clk 0:00:26]}  Rf6 {[%clk 0:00:12]} 47. f3 {[%clk 0:00:25]}  Rb6 {[%clk 0:00:11]} 48. Rd5 {[%clk 0:00:25]}  Re6+ {[%clk 0:00:10]} 49. Kd3 {[%clk 0:00:23]}  Rf6 {[%clk 0:00:11]} 50. Rf5 {[%clk 0:00:21]}  Rd6+ {[%clk 0:00:11]} 51. Ke4 {[%clk 0:00:21]}  Re6+ {[%clk 0:00:11]} 52. Re5 {[%clk 0:00:21]}  Rf6 {[%clk 0:00:11]} 53. f4 {[%clk 0:00:21]}  gxf4 {[%clk 0:00:10]} 54. exf4 {[%clk 0:00:22]}  Ra6 {[%clk 0:00:10]} 55. Kf5 {[%clk 0:00:22]}  Rf6+ {[%clk 0:00:09]} 56. Ke4 {[%clk 0:00:22]}  Ra6 {[%clk 0:00:10]} 57. g5 {[%clk 0:00:22]}  hxg5 {[%clk 0:00:10]} 58. fxg5 {[%clk 0:00:22]}  Ra4+ {[%clk 0:00:09]} 59. Kf5 {[%clk 0:00:22]}  Ra1 {[%clk 0:00:10]} 60. h6+ {[%clk 0:00:21]}  Kh7 {[%clk 0:00:10]} 61. Kf6 {[%clk 0:00:19]}  Rf1+ {[%clk 0:00:11]} 62. Rf5 {[%clk 0:00:20]}  Ra1 {[%clk 0:00:06]} 63. Kxf7 {[%clk 0:00:20]}  Ra7+ {[%clk 0:00:06]} 64. Kf6 {[%clk 0:00:20]}  Ra6+ {[%clk 0:00:06]} 65. Kf7 {[%clk 0:00:17]}  Ra7+ {[%clk 0:00:06]} 66. Kf8 {[%clk 0:00:18]}  Ra8+ {[%clk 0:00:05]} 67. Ke7 {[%clk 0:00:17]}  Ra7+ {[%clk 0:00:05]} 68. Ke6 {[%clk 0:00:16]}  Ra6+ {[%clk 0:00:05]} 69. Kd7 {[%clk 0:00:16]}  Kg6 {[%clk 0:00:04]} 70. Re5 {[%clk 0:00:14]}  Ra7+ {[%clk 0:00:04]} 71. Kd6 {[%clk 0:00:14]}  Ra6+ {[%clk 0:00:04]} 72. Kd5 {[%clk 0:00:14]}  Ra5+ {[%clk 0:00:03]} 73. Ke4 {[%clk 0:00:15]}  Ra4+ {[%clk 0:00:04]} 74. Kf3 {[%clk 0:00:15]}  Ra3+ {[%clk 0:00:03]} 75. Kf4 {[%clk 0:00:15]}  Ra4+ {[%clk 0:00:04]} 76. Re4 {[%clk 0:00:16]}  Ra5 {[%clk 0:00:03]} 77. Re6+ {[%clk 0:00:16]}  Kh5 {[%clk 0:00:02]} 78. h7 {[%clk 0:00:15]}  Ra4+ {[%clk 0:00:01]} 79. Kf5 {[%clk 0:00:15]}  Ra5+ {[%clk 0:00:02]} 80. Kf6 {[%clk 0:00:15]}  Ra8 {[%clk 0:00:02]} 81. g6 {[%clk 0:00:14]}  Ra7 {[%clk 0:00:00]} 82. h8=Q+ {[%clk 0:00:14]} 1-0


[Site "https://www.chess.com"]

[Event "Titled Tuesday Blitz July 4 Late 2023"]
[White "Bullen, Alex"]
[Black "Halkias, Stelios"]
[WhiteFideId "1801627"]
[BlackFideId "4201809"]
[WhiteElo "2295"]
[BlackElo "2771"]
[Result "0-1"]
[Round "3"]
[TimeControl "180+2"]
[Date "2023.07.04"]
[WhiteClock "0:00:45"]
[BlackClock "0:01:34"]
[Board "40"]

1. d4 {[%clk 0:03:00]}  Nf6 {[%clk 0:02:59]} 2. Nf3 {[%clk 0:03:00]}  d5 {[%clk 0:02:58]} 3. c4 {[%clk 0:02:59]}  e6 {[%clk 0:02:58]} 4. e3 {[%clk 0:02:57]}  a6 {[%clk 0:02:56]} 5. b3 {[%clk 0:02:56]}  c5 {[%clk 0:02:56]} 6. Bb2 {[%clk 0:02:55]}  cxd4 {[%clk 0:02:56]} 7. exd4 {[%clk 0:02:55]}  Bb4+ {[%clk 0:02:56]} 8. Nbd2 {[%clk 0:02:54]}  dxc4 {[%clk 0:02:52]} 9. Bxc4 {[%clk 0:02:52]}  O-O {[%clk 0:02:51]} 10. O-O {[%clk 0:02:51]}  b5 {[%clk 0:02:48]} 11. Bd3 {[%clk 0:02:50]}  Bb7 {[%clk 0:02:48]} 12. Ne5 {[%clk 0:02:48]}  Nc6 {[%clk 0:02:40]} 13. Nxc6 {[%clk 0:02:45]}  Bxc6 {[%clk 0:02:39]} 14. Rc1 {[%clk 0:02:46]}  Rc8 {[%clk 0:02:31]} 15. Nf3 {[%clk 0:02:31]}  Qd5 {[%clk 0:02:29]} 16. a3 {[%clk 0:02:18]}  Bd6 {[%clk 0:02:27]} 17. Re1 {[%clk 0:02:08]}  Bb7 {[%clk 0:02:25]} 18. Bf1 {[%clk 0:02:04]}  Rxc1 {[%clk 0:02:22]} 19. Qxc1 {[%clk 0:02:01]}  Qxb3 {[%clk 0:02:19]} 20. Ne5 {[%clk 0:01:45]}  Rc8 {[%clk 0:02:15]} 21. Qd2 {[%clk 0:01:30]}  Rc2 {[%clk 0:01:58]} 22. Qa5 {[%clk 0:01:27]}  Qxb2 {[%clk 0:01:48]} 23. Qd8+ {[%clk 0:01:23]}  Bf8 {[%clk 0:01:48]} 24. Bd3 {[%clk 0:01:09]}  Rc1 {[%clk 0:01:40]} 25. Rxc1 {[%clk 0:00:53]}  Qxc1+ {[%clk 0:01:40]} 26. Bf1 {[%clk 0:00:54]}  Qxa3 {[%clk 0:01:35]} 27. Qc7 {[%clk 0:00:45]}  Qe7 {[%clk 0:01:34]} 0-1


[Site "https://www.chess.com"]

[Event "Titled Tuesday Blitz July 4 Late 2023"]
[White "Bordi, Kevin"]
[Black "ATM622"]
[WhiteFideId "621862"]
[WhiteElo "2872"]
[BlackElo "2561"]
[Result "1-0"]
[Round "3"]
[TimeControl "180+2"]
[Date "2023.07.04"]
[WhiteClock "0:00:22"]
[BlackClock "0:00:45"]
[Board "45"]

1. d4 {[%clk 0:03:00]}  Nf6 {[%clk 0:02:59]} 2. Bg5 {[%clk 0:03:00]}  e6 {[%clk 0:02:58]} 3. e4 {[%clk 0:03:00]}  h6 {[%clk 0:02:57]} 4. Bxf6 {[%clk 0:03:00]}  Qxf6 {[%clk 0:02:57]} 5. c3 {[%clk 0:03:01]}  d5 {[%clk 0:02:56]} 6. Nd2 {[%clk 0:03:00]}  b6 {[%clk 0:02:55]} 7. Bd3 {[%clk 0:03:00]}  Bb7 {[%clk 0:02:55]} 8. Ngf3 {[%clk 0:03:00]}  dxe4 {[%clk 0:02:53]} 9. Nxe4 {[%clk 0:03:00]}  Qd8 {[%clk 0:02:52]} 10. Qa4+ {[%clk 0:02:56]}  Qd7 {[%clk 0:02:49]} 11. Qc2 {[%clk 0:02:48]}  Nc6 {[%clk 0:02:33]} 12. Bb5 {[%clk 0:02:48]}  a6 {[%clk 0:02:31]} 13. Ne5 {[%clk 0:02:48]}  Nxe5 {[%clk 0:02:21]} 14. Bxd7+ {[%clk 0:02:47]}  Nxd7 {[%clk 0:02:22]} 15. O-O {[%clk 0:02:46]}  Be7 {[%clk 0:02:20]} 16. f4 {[%clk 0:02:46]}  O-O {[%clk 0:02:20]} 17. f5 {[%clk 0:02:46]}  exf5 {[%clk 0:02:18]} 18. Rxf5 {[%clk 0:02:47]}  Rfe8 {[%clk 0:02:16]} 19. Raf1 {[%clk 0:02:40]}  Nf6 {[%clk 0:02:13]} 20. Nxf6+ {[%clk 0:02:40]}  Bxf6 {[%clk 0:02:13]} 21. d5 {[%clk 0:02:30]}  Rad8 {[%clk 0:02:08]} 22. c4 {[%clk 0:02:29]}  Bd4+ {[%clk 0:02:06]} 23. Kh1 {[%clk 0:02:29]}  Re7 {[%clk 0:02:06]} 24. Qd2 {[%clk 0:02:26]}  Be3 {[%clk 0:02:03]} 25. Qc3 {[%clk 0:02:16]}  Rde8 {[%clk 0:01:57]} 26. h3 {[%clk 0:02:08]}  Bc8 {[%clk 0:01:55]} 27. R5f3 {[%clk 0:02:06]}  f6 {[%clk 0:01:46]} 28. Qd3 {[%clk 0:02:03]}  Bc5 {[%clk 0:01:42]} 29. Qg6 {[%clk 0:01:56]}  Kh8 {[%clk 0:01:38]} 30. Qh5 {[%clk 0:01:18]}  Re5 {[%clk 0:01:36]} 31. Qg6 {[%clk 0:01:16]}  R5e7 {[%clk 0:01:36]} 32. a3 {[%clk 0:01:15]}  a5 {[%clk 0:01:34]} 33. Rg3 {[%clk 0:01:11]}  Bd6 {[%clk 0:01:32]} 34. Rgf3 {[%clk 0:01:12]}  Bc5 {[%clk 0:01:31]} 35. Qb1 {[%clk 0:01:10]}  a4 {[%clk 0:01:30]} 36. Qc2 {[%clk 0:01:08]}  Bd7 {[%clk 0:01:28]} 37. Qc3 {[%clk 0:01:07]}  Re2 {[%clk 0:01:24]} 38. Rxf6 {[%clk 0:01:01]}  R8e3 {[%clk 0:01:10]} 39. Rf8+ {[%clk 0:00:41]}  Bxf8 {[%clk 0:01:07]} 40. Rxf8+ {[%clk 0:00:40]}  Kh7 {[%clk 0:01:08]} 41. Qd4 {[%clk 0:00:39]}  Re4 {[%clk 0:01:05]} 42. Qd3 {[%clk 0:00:35]}  Re3 {[%clk 0:01:03]} 43. Qd2 {[%clk 0:00:32]}  Re2 {[%clk 0:01:02]} 44. Qc3 {[%clk 0:00:30]}  R2e3 {[%clk 0:01:02]} 45. Qb4 {[%clk 0:00:29]}  Re1+ {[%clk 0:00:57]} 46. Kh2 {[%clk 0:00:29]}  Rc1 {[%clk 0:00:53]} 47. Rf7 {[%clk 0:00:28]}  Be8 {[%clk 0:00:50]} 48. Re7 {[%clk 0:00:25]}  Rcxc4 {[%clk 0:00:45]} 49. Rxe4 {[%clk 0:00:22]} 1-0


[Site "https://www.chess.com"]

[Event "Titled Tuesday Blitz July 4 Late 2023"]
[White "Goltsev, Dmitry"]
[Black "Poltorak, Sebastian"]
[WhiteFideId "24176710"]
[BlackFideId "1199498"]
[WhiteElo "2825"]
[BlackElo "2542"]
[Result "1-0"]
[Round "3"]
[TimeControl "180+2"]
[Date "2023.07.04"]
[WhiteClock "0:00:07"]
[BlackClock "0:00:01"]
[Board "48"]

1. e4 {[%clk 0:02:59]}  c5 {[%clk 0:02:59]} 2. Nf3 {[%clk 0:02:59]}  Nc6 {[%clk 0:02:57]} 3. d4 {[%clk 0:03:00]}  cxd4 {[%clk 0:02:57]} 4. Nxd4 {[%clk 0:03:01]}  Nf6 {[%clk 0:02:58]} 5. Nc3 {[%clk 0:03:01]}  e6 {[%clk 0:02:59]} 6. Be2 {[%clk 0:03:01]}  Bc5 {[%clk 0:02:55]} 7. Nb3 {[%clk 0:03:01]}  Bb4 {[%clk 0:02:54]} 8. O-O {[%clk 0:03:00]}  O-O {[%clk 0:02:52]} 9. Bg5 {[%clk 0:02:59]}  h6 {[%clk 0:02:51]} 10. Bh4 {[%clk 0:02:59]}  g5 {[%clk 0:02:48]} 11. Bg3 {[%clk 0:03:00]}  Bxc3 {[%clk 0:02:48]} 12. bxc3 {[%clk 0:03:01]}  Nxe4 {[%clk 0:02:49]} 13. Bd3 {[%clk 0:03:01]}  Nxg3 {[%clk 0:02:48]} 14. hxg3 {[%clk 0:03:02]}  f5 {[%clk 0:02:44]} 15. Re1 {[%clk 0:02:57]}  d6 {[%clk 0:02:42]} 16. Nd4 {[%clk 0:02:52]}  Nxd4 {[%clk 0:02:41]} 17. cxd4 {[%clk 0:02:53]}  Bd7 {[%clk 0:02:36]} 18. c4 {[%clk 0:02:47]}  Rc8 {[%clk 0:02:31]} 19. g4 {[%clk 0:02:27]}  Qf6 {[%clk 0:02:26]} 20. gxf5 {[%clk 0:02:26]}  Qxd4 {[%clk 0:01:59]} 21. Qh5 {[%clk 0:01:50]}  exf5 {[%clk 0:01:47]} 22. Qxh6 {[%clk 0:01:38]}  Qf6 {[%clk 0:01:36]} 23. Qh5 {[%clk 0:01:30]}  Rce8 {[%clk 0:01:34]} 24. Rab1 {[%clk 0:01:30]}  b6 {[%clk 0:01:26]} 25. Qf3 {[%clk 0:01:26]}  Kg7 {[%clk 0:01:20]} 26. Qb7 {[%clk 0:01:24]}  Rxe1+ {[%clk 0:01:09]} 27. Rxe1 {[%clk 0:01:25]}  Rf7 {[%clk 0:01:09]} 28. Qxa7 {[%clk 0:01:25]}  Qc3 {[%clk 0:01:03]} 29. Rd1 {[%clk 0:01:24]}  Qb2 {[%clk 0:00:55]} 30. Qb8 {[%clk 0:01:19]}  Ba4 {[%clk 0:00:53]} 31. Rf1 {[%clk 0:01:17]}  Qd4 {[%clk 0:00:52]} 32. Bb1 {[%clk 0:01:13]}  Bc6 {[%clk 0:00:51]} 33. Qc8 {[%clk 0:01:02]}  Bb7 {[%clk 0:00:50]} 34. Qe6 {[%clk 0:01:01]}  Qg4 {[%clk 0:00:46]} 35. f3 {[%clk 0:00:50]}  Qd4+ {[%clk 0:00:46]} 36. Rf2 {[%clk 0:00:44]}  Qd1+ {[%clk 0:00:43]} 37. Rf1 {[%clk 0:00:44]}  Qd4+ {[%clk 0:00:44]} 38. Rf2 {[%clk 0:00:44]}  Qe5 {[%clk 0:00:29]} 39. Qxe5+ {[%clk 0:00:42]}  dxe5 {[%clk 0:00:30]} 40. Rb2 {[%clk 0:00:42]}  Rf6 {[%clk 0:00:29]} 41. Rb5 {[%clk 0:00:41]}  e4 {[%clk 0:00:27]} 42. fxe4 {[%clk 0:00:39]}  fxe4 {[%clk 0:00:22]} 43. Rxg5+ {[%clk 0:00:40]}  Kf7 {[%clk 0:00:20]} 44. Re5 {[%clk 0:00:40]}  Re6 {[%clk 0:00:18]} 45. Rxe6 {[%clk 0:00:39]}  Kxe6 {[%clk 0:00:19]} 46. Kf2 {[%clk 0:00:40]}  Ke5 {[%clk 0:00:20]} 47. Ke3 {[%clk 0:00:40]}  Bc6 {[%clk 0:00:17]} 48. g4 {[%clk 0:00:40]}  Bb7 {[%clk 0:00:16]} 49. g5 {[%clk 0:00:40]}  Ba6 {[%clk 0:00:12]} 50. Bxe4 {[%clk 0:00:35]}  Bxc4 {[%clk 0:00:12]} 51. a3 {[%clk 0:00:35]}  Bg8 {[%clk 0:00:10]} 52. g6 {[%clk 0:00:30]}  Be6 {[%clk 0:00:08]} 53. Bc2 {[%clk 0:00:29]}  Bg8 {[%clk 0:00:06]} 54. Kd3 {[%clk 0:00:29]}  Kf6 {[%clk 0:00:07]} 55. Kc3 {[%clk 0:00:29]}  Bd5 {[%clk 0:00:05]} 56. Kb4 {[%clk 0:00:28]}  Bc6 {[%clk 0:00:06]} 57. Bd3 {[%clk 0:00:28]}  Bd7 {[%clk 0:00:06]} 58. Kc4 {[%clk 0:00:26]}  Bc6 {[%clk 0:00:06]} 59. Kd4 {[%clk 0:00:27]}  Bb7 {[%clk 0:00:06]} 60. Be4 {[%clk 0:00:12]}  Ba6 {[%clk 0:00:03]} 61. Kc3 {[%clk 0:00:08]}  Bb5 {[%clk 0:00:02]} 62. Kb4 {[%clk 0:00:09]}  Bd7 {[%clk 0:00:03]} 63. Kc4 {[%clk 0:00:08]}  Be8 {[%clk 0:00:02]} 64. Kd5 {[%clk 0:00:07]}  Ba4 {[%clk 0:00:03]} 65. Kd6 {[%clk 0:00:07]}  Bd1 {[%clk 0:00:02]} 66. Kc6 {[%clk 0:00:06]}  Ke5 {[%clk 0:00:02]} 67. g7 {[%clk 0:00:05]}  Bb3 {[%clk 0:00:02]} 68. Bh7 {[%clk 0:00:06]}  b5 {[%clk 0:00:01]} 69. g8=Q {[%clk 0:00:06]}  Bxg8 {[%clk 0:00:01]} 70. Bxg8 {[%clk 0:00:07]}  b4 {[%clk 0:00:01]} 71. axb4 {[%clk 0:00:07]} 1-0


[Site "https://www.chess.com"]